[Event "Titled Tuesday Blitz February 28 Late 2023"]
[White "Averjanov, Alexey"]
[Black "Yuan, Qingyu"]
[WhiteFideId "14109867"]
[BlackFideId "8609772"]
[WhiteElo "2688"]
[BlackElo "2359"]
[Result "0-1"]
[Round "11"]
[TimeControl "180+2"]
[Date "2023.02.28"]
[WhiteClock "0:00:03"]
[BlackClock "0:00:08"]

1. d4 {[%clk 0:03:00]}  d5 {[%clk 0:03:00]} 2. c4 {[%clk 0:03:01]}  e6 {[%clk 0:03:00]} 3. Nf3 {[%clk 0:03:00]}  Nf6 {[%clk 0:03:01]} 4. e3 {[%clk 0:03:00]}  Be7 {[%clk 0:03:01]} 5. Nbd2 {[%clk 0:03:00]}  O-O {[%clk 0:03:02]} 6. Bd3 {[%clk 0:03:01]}  c5 {[%clk 0:03:02]} 7. b3 {[%clk 0:03:00]}  cxd4 {[%clk 0:03:02]} 8. exd4 {[%clk 0:03:01]}  b6 {[%clk 0:03:03]} 9. O-O {[%clk 0:03:01]}  Bb7 {[%clk 0:03:03]} 10. Bb2 {[%clk 0:03:01]}  Nc6 {[%clk 0:03:04]} 11. Qe2 {[%clk 0:03:01]}  Rc8 {[%clk 0:03:01]} 12. Rac1 {[%clk 0:03:01]}  Re8 {[%clk 0:03:01]} 13. Rfd1 {[%clk 0:03:01]}  Bf8 {[%clk 0:02:58]} 14. Ne5 {[%clk 0:02:58]}  dxc4 {[%clk 0:02:47]} 15. Ndxc4 {[%clk 0:02:43]}  Nb4 {[%clk 0:02:39]} 16. Bb1 {[%clk 0:02:41]}  Nbd5 {[%clk 0:02:36]} 17. Qf3 {[%clk 0:02:34]}  Rc7 {[%clk 0:02:17]} 18. Qg3 {[%clk 0:02:30]}  g6 {[%clk 0:02:13]} 19. Re1 {[%clk 0:02:20]}  Bh6 {[%clk 0:02:13]} 20. Rcd1 {[%clk 0:02:15]}  Nh5 {[%clk 0:01:53]} 21. Qg4 {[%clk 0:02:12]}  Ndf4 {[%clk 0:01:41]} 22. Ne3 {[%clk 0:01:11]}  f5 {[%clk 0:01:29]} 23. Bxf5 {[%clk 0:01:09]}  exf5 {[%clk 0:01:06]} 24. Nxf5 {[%clk 0:01:10]}  Bg5 {[%clk 0:00:48]} 25. Ne3 {[%clk 0:00:59]}  Bc8 {[%clk 0:00:45]} 26. Qf3 {[%clk 0:00:55]}  Rf8 {[%clk 0:00:44]} 27. Qe4 {[%clk 0:00:53]}  Nf6 {[%clk 0:00:39]} 28. Qf3 {[%clk 0:00:47]}  N4d5 {[%clk 0:00:33]} 29. Ba3 {[%clk 0:00:43]}  Re8 {[%clk 0:00:31]} 30. N3c4 {[%clk 0:00:40]}  Re6 {[%clk 0:00:23]} 31. Nd3 {[%clk 0:00:36]}  Rf7 {[%clk 0:00:19]} 32. Nce5 {[%clk 0:00:33]}  Rc7 {[%clk 0:00:18]} 33. g3 {[%clk 0:00:28]}  h5 {[%clk 0:00:17]} 34. h4 {[%clk 0:00:26]}  Bh6 {[%clk 0:00:17]} 35. Nxg6 {[%clk 0:00:24]}  Rxe1+ {[%clk 0:00:17]} 36. Rxe1 {[%clk 0:00:25]}  Bg4 {[%clk 0:00:18]} 37. Qg2 {[%clk 0:00:22]}  Bf5 {[%clk 0:00:13]} 38. Nde5 {[%clk 0:00:19]}  Kg7 {[%clk 0:00:12]} 39. Nf4 {[%clk 0:00:18]}  Nxf4 {[%clk 0:00:08]} 40. gxf4+ {[%clk 0:00:19]}  Kh7 {[%clk 0:00:08]} 41. Nc6 {[%clk 0:00:16]}  Qc8 {[%clk 0:00:06]} 42. Ne7 {[%clk 0:00:14]}  Qd7 {[%clk 0:00:07]} 43. Re5 {[%clk 0:00:08]}  Bg4 {[%clk 0:00:05]} 44. d5 {[%clk 0:00:06]}  Rc2 {[%clk 0:00:05]} 45. Nf5 {[%clk 0:00:03]}  Bxf5 {[%clk 0:00:05]} 46. Re7+ {[%clk 0:00:04]}  Qxe7 {[%clk 0:00:05]} 47. Bxe7 {[%clk 0:00:05]}  Rc1+ {[%clk 0:00:05]} 48. Kh2 {[%clk 0:00:03]}  Bxf4+ {[%clk 0:00:06]} 49. Qg3 {[%clk 0:00:03]}  Ng4+ {[%clk 0:00:06]} 50. Kg2 {[%clk 0:00:03]}  Be4+ {[%clk 0:00:07]} 51. f3 {[%clk 0:00:04]}  Rc2+ {[%clk 0:00:07]} 52. Kh3 {[%clk 0:00:04]}  Bxg3 {[%clk 0:00:07]} 53. Kxg3 {[%clk 0:00:04]}  Bxf3 {[%clk 0:00:07]} 54. Kxf3 {[%clk 0:00:04]}  Rxa2 {[%clk 0:00:07]} 55. d6 {[%clk 0:00:03]}  Rd2 {[%clk 0:00:08]} 56. Ke4 {[%clk 0:00:04]}  Kg6 {[%clk 0:00:08]} 57. b4 {[%clk 0:00:03]}  a5 {[%clk 0:00:08]} 58. b5 {[%clk 0:00:03]}  a4 {[%clk 0:00:08]} 0-1


[Site "https://www.chess.com"]

[Event "Titled Tuesday Blitz February 28 Late 2023"]
[White "Makridis, Dimitrios"]
[Black "Deac, Bogdan-Daniel"]
[WhiteFideId "25864475"]
[BlackFideId "1226380"]
[WhiteElo "2277"]
[BlackElo "2649"]
[Result "0-1"]
[Round "11"]
[TimeControl "180+2"]
[Date "2023.02.28"]
[WhiteClock "0:00:05"]
[BlackClock "0:00:06"]

1. e4 {[%clk 0:02:51]}  c6 {[%clk 0:02:58]} 2. d4 {[%clk 0:02:50]}  d5 {[%clk 0:02:59]} 3. exd5 {[%clk 0:02:51]}  cxd5 {[%clk 0:02:55]} 4. Bd3 {[%clk 0:02:51]}  Nf6 {[%clk 0:02:56]} 5. h3 {[%clk 0:02:50]}  Nc6 {[%clk 0:02:55]} 6. c3 {[%clk 0:02:50]}  g6 {[%clk 0:02:55]} 7. Nf3 {[%clk 0:02:50]}  Bf5 {[%clk 0:02:55]} 8. Ne5 {[%clk 0:02:50]}  Rc8 {[%clk 0:02:48]} 9. O-O {[%clk 0:02:45]}  Bg7 {[%clk 0:02:45]} 10. Bxf5 {[%clk 0:02:44]}  gxf5 {[%clk 0:02:44]} 11. Nd3 {[%clk 0:02:45]}  e6 {[%clk 0:02:44]} 12. Bf4 {[%clk 0:02:41]}  O-O {[%clk 0:02:43]} 13. Nd2 {[%clk 0:02:42]}  Ne7 {[%clk 0:02:43]} 14. Re1 {[%clk 0:02:40]}  Ng6 {[%clk 0:02:43]} 15. Bh2 {[%clk 0:02:39]}  Kh8 {[%clk 0:02:43]} 16. Kh1 {[%clk 0:02:38]}  Ne4 {[%clk 0:02:39]} 17. f3 {[%clk 0:02:37]}  Nxd2 {[%clk 0:02:15]} 18. Qxd2 {[%clk 0:02:38]}  Qh4 {[%clk 0:02:15]} 19. Qf2 {[%clk 0:02:10]}  Qe7 {[%clk 0:02:12]} 20. Re2 {[%clk 0:01:59]}  h5 {[%clk 0:02:11]} 21. Rg1 {[%clk 0:01:58]}  h4 {[%clk 0:02:10]} 22. Nf4 {[%clk 0:01:56]}  Nxf4 {[%clk 0:02:02]} 23. Bxf4 {[%clk 0:01:57]}  Rg8 {[%clk 0:02:02]} 24. Qe3 {[%clk 0:01:34]}  Kh7 {[%clk 0:02:00]} 25. g3 {[%clk 0:01:22]}  hxg3 {[%clk 0:01:59]} 26. Rxg3 {[%clk 0:01:21]}  Qh4 {[%clk 0:01:59]} 27. Reg2 {[%clk 0:01:14]}  Bh6 {[%clk 0:01:54]} 28. Bg5 {[%clk 0:00:34]}  Rxg5 {[%clk 0:00:25]} 29. Rxg5 {[%clk 0:00:35]}  Bxg5 {[%clk 0:00:20]} 30. Qxg5 {[%clk 0:00:36]}  Qxg5 {[%clk 0:00:21]} 31. Rxg5 {[%clk 0:00:37]}  f6 {[%clk 0:00:19]} 32. Rg2 {[%clk 0:00:34]}  e5 {[%clk 0:00:20]} 33. dxe5 {[%clk 0:00:28]}  fxe5 {[%clk 0:00:20]} 34. Rg5 {[%clk 0:00:29]}  Rf8 {[%clk 0:00:19]} 35. h4 {[%clk 0:00:22]}  d4 {[%clk 0:00:19]} 36. cxd4 {[%clk 0:00:20]}  exd4 {[%clk 0:00:19]} 37. Kg2 {[%clk 0:00:17]}  d3 {[%clk 0:00:19]} 38. Kf2 {[%clk 0:00:16]}  Re8 {[%clk 0:00:19]} 39. Rg1 {[%clk 0:00:15]}  Re2+ {[%clk 0:00:19]} 40. Kg3 {[%clk 0:00:15]}  Rxb2 {[%clk 0:00:19]} 41. Re1 {[%clk 0:00:13]}  d2 {[%clk 0:00:17]} 42. Re7+ {[%clk 0:00:14]}  Kg6 {[%clk 0:00:17]} 43. Rd7 {[%clk 0:00:14]}  Rxa2 {[%clk 0:00:18]} 44. Kf4 {[%clk 0:00:14]}  b5 {[%clk 0:00:18]} 45. Rd6+ {[%clk 0:00:14]}  Kh5 {[%clk 0:00:17]} 46. Rd8 {[%clk 0:00:12]}  b4 {[%clk 0:00:17]} 47. Kxf5 {[%clk 0:00:11]}  Kxh4 {[%clk 0:00:15]} 48. Kf4 {[%clk 0:00:11]}  Kh3 {[%clk 0:00:15]} 49. Ke3 {[%clk 0:00:10]}  b3 {[%clk 0:00:10]} 50. Ke2 {[%clk 0:00:07]}  a5 {[%clk 0:00:07]} 51. Rb8 {[%clk 0:00:06]}  a4 {[%clk 0:00:07]} 52. f4 {[%clk 0:00:06]}  Kg4 {[%clk 0:00:07]} 53. Kd1 {[%clk 0:00:05]}  Rc2 {[%clk 0:00:05]} 54. Rb4 {[%clk 0:00:05]}  Ra2 {[%clk 0:00:03]} 55. f5+ {[%clk 0:00:06]}  Kxf5 {[%clk 0:00:04]} 56. Rb5+ {[%clk 0:00:06]}  Ke6 {[%clk 0:00:04]} 57. Rb6+ {[%clk 0:00:06]}  Kd5 {[%clk 0:00:04]} 58. Rb5+ {[%clk 0:00:06]}  Kc4 {[%clk 0:00:04]} 59. Rb8 {[%clk 0:00:07]}  Kc3 {[%clk 0:00:04]} 60. Rc8+ {[%clk 0:00:07]}  Kb2 {[%clk 0:00:04]} 61. Kxd2 {[%clk 0:00:07]}  Ra1 {[%clk 0:00:04]} 62. Re8 {[%clk 0:00:04]}  a3 {[%clk 0:00:04]} 63. Re2 {[%clk 0:00:04]}  Rc1 {[%clk 0:00:05]} 64. Kd3+ {[%clk 0:00:04]}  Rc2 {[%clk 0:00:05]} 65. Re8 {[%clk 0:00:04]}  a2 {[%clk 0:00:05]} 66. Re7 {[%clk 0:00:05]}  a1=Q {[%clk 0:00:06]} 0-1


[Site "https://www.chess.com"]

[Event "Titled Tuesday Blitz February 28 Late 2023"]
[White "Hambleton, Aman"]
[Black "Chigaev, Maksim"]
[WhiteFideId "2606577"]
[BlackFideId "4108116"]
[WhiteElo "2511"]
[BlackElo "2547"]
[Result "0-1"]
[Round "11"]
[TimeControl "180+2"]
[Date "2023.02.28"]
[WhiteClock "0:00:03"]
[BlackClock "0:00:22"]

1. d4 {[%clk 0:03:00]}  d5 {[%clk 0:02:56]} 2. Bf4 {[%clk 0:02:55]}  Nf6 {[%clk 0:02:56]} 3. e3 {[%clk 0:02:55]}  c5 {[%clk 0:02:57]} 4. c3 {[%clk 0:02:53]}  Nc6 {[%clk 0:02:57]} 5. Nd2 {[%clk 0:02:52]}  e6 {[%clk 0:02:57]} 6. Ngf3 {[%clk 0:02:42]}  Be7 {[%clk 0:02:58]} 7. Bd3 {[%clk 0:02:40]}  Nh5 {[%clk 0:02:55]} 8. Be5 {[%clk 0:02:41]}  f6 {[%clk 0:02:52]} 9. Bg3 {[%clk 0:02:41]}  g6 {[%clk 0:02:52]} 10. O-O {[%clk 0:02:36]}  O-O {[%clk 0:02:50]} 11. dxc5 {[%clk 0:02:23]}  Bxc5 {[%clk 0:02:47]} 12. e4 {[%clk 0:02:23]}  Nxg3 {[%clk 0:02:42]} 13. hxg3 {[%clk 0:02:22]}  dxe4 {[%clk 0:02:41]} 14. Nxe4 {[%clk 0:02:23]}  Bb6 {[%clk 0:02:41]} 15. Bc4 {[%clk 0:02:03]}  Qxd1 {[%clk 0:02:06]} 16. Raxd1 {[%clk 0:02:04]}  Kg7 {[%clk 0:02:05]} 17. Nd6 {[%clk 0:01:57]}  e5 {[%clk 0:02:06]} 18. Nxc8 {[%clk 0:01:57]}  Raxc8 {[%clk 0:02:06]} 19. Rd7+ {[%clk 0:01:57]}  Kh8 {[%clk 0:02:07]} 20. Bd5 {[%clk 0:00:55]}  Rcd8 {[%clk 0:02:00]} 21. Bxc6 {[%clk 0:00:52]}  bxc6 {[%clk 0:02:00]} 22. Rfd1 {[%clk 0:00:52]}  Rxd7 {[%clk 0:01:53]} 23. Rxd7 {[%clk 0:00:53]}  Rd8 {[%clk 0:01:54]} 24. Rxd8+ {[%clk 0:00:52]}  Bxd8 {[%clk 0:01:55]} 25. g4 {[%clk 0:00:48]}  Bc7 {[%clk 0:01:50]} 26. Kf1 {[%clk 0:00:32]}  Kg7 {[%clk 0:01:48]} 27. Ke2 {[%clk 0:00:32]}  Kf7 {[%clk 0:01:44]} 28. Nd2 {[%clk 0:00:29]}  Ke6 {[%clk 0:01:38]} 29. Kd3 {[%clk 0:00:24]}  f5 {[%clk 0:01:27]} 30. gxf5+ {[%clk 0:00:25]}  gxf5 {[%clk 0:01:27]} 31. f3 {[%clk 0:00:25]}  h5 {[%clk 0:01:24]} 32. b4 {[%clk 0:00:21]}  Bb6 {[%clk 0:01:17]} 33. a4 {[%clk 0:00:16]}  a6 {[%clk 0:01:01]} 34. Nb3 {[%clk 0:00:08]}  h4 {[%clk 0:00:57]} 35. c4 {[%clk 0:00:08]}  Bf2 {[%clk 0:00:50]} 36. Nd2 {[%clk 0:00:03]}  Be1 {[%clk 0:00:41]} 37. b5 {[%clk 0:00:02]}  axb5 {[%clk 0:00:37]} 38. cxb5 {[%clk 0:00:03]}  Bxd2 {[%clk 0:00:32]} 39. Kxd2 {[%clk 0:00:02]}  cxb5 {[%clk 0:00:32]} 40. axb5 {[%clk 0:00:03]}  Kd5 {[%clk 0:00:33]} 41. Kc3 {[%clk 0:00:01]}  Kc5 {[%clk 0:00:33]} 42. b6 {[%clk 0:00:01]}  Kxb6 {[%clk 0:00:33]} 43. Kc4 {[%clk 0:00:01]}  Kc6 {[%clk 0:00:34]} 44. Kb4 {[%clk 0:00:01]}  Kd5 {[%clk 0:00:34]} 45. Kc3 {[%clk 0:00:02]}  Kc5 {[%clk 0:00:34]} 46. Kd3 {[%clk 0:00:02]}  Kb4 {[%clk 0:00:34]} 47. Kd2 {[%clk 0:00:02]}  Kc4 {[%clk 0:00:33]} 48. Kc2 {[%clk 0:00:02]}  Kd4 {[%clk 0:00:34]} 49. Kd2 {[%clk 0:00:03]}  f4 {[%clk 0:00:29]} 50. Ke2 {[%clk 0:00:01]}  Kc3 {[%clk 0:00:22]} 51. Ke1 {[%clk 0:00:01]}  Kd3 {[%clk 0:00:22]} 52. Kf2 {[%clk 0:00:01]}  Kd2 {[%clk 0:00:23]} 53. Kf1 {[%clk 0:00:02]}  Ke3 {[%clk 0:00:22]} 54. Ke1 {[%clk 0:00:02]}  h3 {[%clk 0:00:21]} 55. gxh3 {[%clk 0:00:02]}  Kxf3 {[%clk 0:00:21]} 56. h4 {[%clk 0:00:02]}  Kg4 {[%clk 0:00:22]} 57. h5 {[%clk 0:00:03]}  Kxh5 {[%clk 0:00:22]} 0-1


[Site "https://www.chess.com"]

[Event "Titled Tuesday Blitz February 28 Late 2023"]
[White "Zhu, Jiner"]
[Black "Baskakov, Egor"]
[WhiteFideId "8608059"]
[BlackFideId "24197866"]
[WhiteElo "2384"]
[BlackElo "2212"]
[Result "0-1"]
[Round "11"]
[TimeControl "180+2"]
[Date "2023.02.28"]
[WhiteClock "0:00:02"]
[BlackClock "0:00:08"]

1. e4 {[%clk 0:03:00]}  c5 {[%clk 0:03:00]} 2. Nf3 {[%clk 0:03:00]}  Nf6 {[%clk 0:03:00]} 3. Nc3 {[%clk 0:02:55]}  d5 {[%clk 0:03:00]} 4. exd5 {[%clk 0:02:54]}  Nxd5 {[%clk 0:03:01]} 5. Bb5+ {[%clk 0:02:52]}  Bd7 {[%clk 0:03:01]} 6. Bxd7+ {[%clk 0:02:52]}  Qxd7 {[%clk 0:03:02]} 7. Nxd5 {[%clk 0:02:51]}  Qxd5 {[%clk 0:03:03]} 8. d3 {[%clk 0:02:51]}  Nc6 {[%clk 0:03:03]} 9. O-O {[%clk 0:02:51]}  g6 {[%clk 0:03:02]} 10. Re1 {[%clk 0:02:46]}  Bg7 {[%clk 0:03:01]} 11. a4 {[%clk 0:02:45]}  O-O {[%clk 0:02:58]} 12. Rb1 {[%clk 0:02:44]}  Rad8 {[%clk 0:02:56]} 13. b3 {[%clk 0:02:43]}  Rfe8 {[%clk 0:02:54]} 14. Bd2 {[%clk 0:02:41]}  h6 {[%clk 0:02:53]} 15. Be3 {[%clk 0:02:40]}  e5 {[%clk 0:02:48]} 16. Nd2 {[%clk 0:02:37]}  Nd4 {[%clk 0:02:48]} 17. f3 {[%clk 0:02:36]}  b6 {[%clk 0:02:44]} 18. Nc4 {[%clk 0:02:33]}  Qc6 {[%clk 0:02:43]} 19. Qd2 {[%clk 0:02:31]}  Nf5 {[%clk 0:02:39]} 20. Qf2 {[%clk 0:02:28]}  a6 {[%clk 0:02:32]} 21. b4 {[%clk 0:02:02]}  Nxe3 {[%clk 0:02:28]} 22. Qxe3 {[%clk 0:01:47]}  e4 {[%clk 0:02:22]} 23. b5 {[%clk 0:01:33]}  axb5 {[%clk 0:02:17]} 24. axb5 {[%clk 0:01:34]}  Qd7 {[%clk 0:01:43]} 25. Qf4 {[%clk 0:01:13]}  exd3 {[%clk 0:01:42]} 26. cxd3 {[%clk 0:01:11]}  Rxe1+ {[%clk 0:01:36]} 27. Rxe1 {[%clk 0:01:11]}  Qxd3 {[%clk 0:01:37]} 28. Kh1 {[%clk 0:00:56]}  Rd4 {[%clk 0:01:27]} 29. Qb8+ {[%clk 0:00:49]}  Kh7 {[%clk 0:01:28]} 30. Nxb6 {[%clk 0:00:45]}  Qxb5 {[%clk 0:01:27]} 31. Qc7 {[%clk 0:00:44]}  Qa5 {[%clk 0:00:58]} 32. Rc1 {[%clk 0:00:26]}  Qa3 {[%clk 0:00:35]} 33. Rg1 {[%clk 0:00:23]}  Qa5 {[%clk 0:00:31]} 34. Rc1 {[%clk 0:00:21]}  c4 {[%clk 0:00:26]} 35. h3 {[%clk 0:00:13]}  c3 {[%clk 0:00:26]} 36. Qc6 {[%clk 0:00:10]}  Rd2 {[%clk 0:00:21]} 37. Nd7 {[%clk 0:00:07]}  Qg5 {[%clk 0:00:18]} 38. Rg1 {[%clk 0:00:04]}  c2 {[%clk 0:00:18]} 39. Qc4 {[%clk 0:00:04]}  Qf5 {[%clk 0:00:14]} 40. Nc5 {[%clk 0:00:02]}  Rd1 {[%clk 0:00:12]} 41. Nb3 {[%clk 0:00:02]}  Bb2 {[%clk 0:00:08]} 0-1


[Site "https://www.chess.com"]

[Event "Titled Tuesday Blitz February 28 Late 2023"]
[White "Aldokhin, Ivan"]
[Black "Ibarra Jerez, Jose Carlos"]
[WhiteFideId "24115720"]
[BlackFideId "2226332"]
[WhiteElo "2322"]
[BlackElo "2638"]
[Result "1/2-1/2"]
[Round "11"]
[TimeControl "180+2"]
[Date "2023.02.28"]
[WhiteClock "0:00:02"]
[BlackClock "0:00:07"]

1. e4 {[%clk 0:02:59]}  c5 {[%clk 0:02:59]} 2. Nf3 {[%clk 0:03:00]}  Nc6 {[%clk 0:02:58]} 3. d4 {[%clk 0:03:00]}  cxd4 {[%clk 0:02:58]} 4. Nxd4 {[%clk 0:03:01]}  e5 {[%clk 0:02:59]} 5. Nb5 {[%clk 0:03:02]}  d6 {[%clk 0:02:59]} 6. N1c3 {[%clk 0:03:00]}  a6 {[%clk 0:02:58]} 7. Na3 {[%clk 0:03:01]}  Be6 {[%clk 0:02:58]} 8. Nd5 {[%clk 0:02:47]}  Rc8 {[%clk 0:02:39]} 9. c3 {[%clk 0:02:45]}  Nf6 {[%clk 0:02:35]} 10. Bg5 {[%clk 0:02:35]}  Be7 {[%clk 0:02:35]} 11. Bxf6 {[%clk 0:02:32]}  Bxf6 {[%clk 0:02:35]} 12. Nc4 {[%clk 0:02:29]}  O-O {[%clk 0:02:30]} 13. Nxd6 {[%clk 0:02:26]}  Rb8 {[%clk 0:02:16]} 14. Be2 {[%clk 0:02:26]}  Bg5 {[%clk 0:02:09]} 15. O-O {[%clk 0:02:03]}  Kh8 {[%clk 0:02:05]} 16. Nc4 {[%clk 0:01:55]}  b5 {[%clk 0:02:02]} 17. Nce3 {[%clk 0:01:54]}  g6 {[%clk 0:02:01]} 18. a4 {[%clk 0:01:44]}  f5 {[%clk 0:01:48]} 19. axb5 {[%clk 0:01:35]}  axb5 {[%clk 0:01:46]} 20. Bf3 {[%clk 0:01:10]}  f4 {[%clk 0:01:40]} 21. Nc2 {[%clk 0:01:06]}  h5 {[%clk 0:01:31]} 22. Ncb4 {[%clk 0:00:48]}  Nxb4 {[%clk 0:01:30]} 23. Nxb4 {[%clk 0:00:40]}  Bc4 {[%clk 0:01:18]} 24. Qxd8 {[%clk 0:00:37]}  Rbxd8 {[%clk 0:01:17]} 25. Rfd1 {[%clk 0:00:37]}  Bb3 {[%clk 0:01:11]} 26. Rxd8 {[%clk 0:00:36]}  Rxd8 {[%clk 0:01:12]} 27. Nc6 {[%clk 0:00:30]}  Re8 {[%clk 0:01:12]} 28. Kf1 {[%clk 0:00:21]}  Bf6 {[%clk 0:01:09]} 29. Be2 {[%clk 0:00:19]}  Ba4 {[%clk 0:00:37]} 30. Bd1 {[%clk 0:00:12]}  Bxd1 {[%clk 0:00:22]} 31. Rxd1 {[%clk 0:00:11]}  Ra8 {[%clk 0:00:23]} 32. Nb4 {[%clk 0:00:07]}  Be7 {[%clk 0:00:20]} 33. Nd5 {[%clk 0:00:06]}  Bf8 {[%clk 0:00:18]} 34. Ke2 {[%clk 0:00:05]}  Ra2 {[%clk 0:00:18]} 35. Rd2 {[%clk 0:00:05]}  Kg7 {[%clk 0:00:18]} 36. h3 {[%clk 0:00:03]}  g5 {[%clk 0:00:17]} 37. Kf3 {[%clk 0:00:03]}  Ra1 {[%clk 0:00:16]} 38. Nc7 {[%clk 0:00:03]}  Kf7 {[%clk 0:00:09]} 39. Rd7+ {[%clk 0:00:02]}  Kg6 {[%clk 0:00:09]} 40. Ne6 {[%clk 0:00:02]}  Bh6 {[%clk 0:00:08]} 41. Nc7 {[%clk 0:00:02]}  Re1 {[%clk 0:00:07]} 42. Rd6+ {[%clk 0:00:02]}  Kh7 {[%clk 0:00:07]} 43. Nxb5 {[%clk 0:00:02]}  g4+ {[%clk 0:00:07]} 44. hxg4 {[%clk 0:00:02]}  hxg4+ {[%clk 0:00:07]} 45. Kxg4 {[%clk 0:00:02]}  Rxe4 {[%clk 0:00:08]} 46. Rd7+ {[%clk 0:00:02]}  Kg6 {[%clk 0:00:08]} 47. Rd6+ {[%clk 0:00:02]}  Kh7 {[%clk 0:00:08]} 48. Kf3 {[%clk 0:00:02]}  Re1 {[%clk 0:00:08]} 49. Rb6 {[%clk 0:00:01]}  e4+ {[%clk 0:00:08]} 50. Kg4 {[%clk 0:00:02]}  Rg1 {[%clk 0:00:08]} 51. Kf5 {[%clk 0:00:01]}  e3 {[%clk 0:00:08]} 52. fxe3 {[%clk 0:00:01]}  fxe3 {[%clk 0:00:09]} 53. Re6 {[%clk 0:00:02]}  Rxg2 {[%clk 0:00:09]} 54. Nd4 {[%clk 0:00:02]}  Rf2+ {[%clk 0:00:09]} 55. Ke4 {[%clk 0:00:02]}  Rxb2 {[%clk 0:00:08]} 56. Nf5 {[%clk 0:00:02]}  Bg5 {[%clk 0:00:07]} 57. Kd3 {[%clk 0:00:01]}  Rd2+ {[%clk 0:00:06]} 58. Kc4 {[%clk 0:00:01]}  Re2 {[%clk 0:00:04]} 59. Nd4 {[%clk 0:00:01]}  Re1 {[%clk 0:00:04]} 60. Nf5 {[%clk 0:00:02]}  Rf1 {[%clk 0:00:04]} 61. Nxe3 {[%clk 0:00:02]}  Rf4+ {[%clk 0:00:05]} 62. Kd3 {[%clk 0:00:02]}  Kg7 {[%clk 0:00:05]} 63. Re4 {[%clk 0:00:02]}  Rf3 {[%clk 0:00:04]} 64. Kd4 {[%clk 0:00:01]}  Bf6+ {[%clk 0:00:04]} 65. Kd3 {[%clk 0:00:01]}  Bg5 {[%clk 0:00:05]} 66. Kd4 {[%clk 0:00:01]}  Kg6 {[%clk 0:00:05]} 67. Nd5 {[%clk 0:00:02]}  Rf1 {[%clk 0:00:05]} 68. Re6+ {[%clk 0:00:02]}  Kf5 {[%clk 0:00:06]} 69. Re5+ {[%clk 0:00:02]}  Kg6 {[%clk 0:00:05]} 70. Re6+ {[%clk 0:00:03]}  Kf7 {[%clk 0:00:05]} 71. Re5 {[%clk 0:00:03]}  Bh6 {[%clk 0:00:05]} 72. Re4 {[%clk 0:00:03]}  Rf3 {[%clk 0:00:04]} 73. c4 {[%clk 0:00:03]}  Bg7+ {[%clk 0:00:03]} 74. Kc5 {[%clk 0:00:03]}  Bf8+ {[%clk 0:00:03]} 75. Kc6 {[%clk 0:00:03]}  Rf1 {[%clk 0:00:04]} 76. Rg4 {[%clk 0:00:03]}  Rc1 {[%clk 0:00:04]} 77. Nb6 {[%clk 0:00:02]}  Ke6 {[%clk 0:00:04]} 78. Nd5 {[%clk 0:00:02]}  Ba3 {[%clk 0:00:03]} 79. Re4+ {[%clk 0:00:02]}  Kf5 {[%clk 0:00:04]} 80. Rh4 {[%clk 0:00:02]}  Kg5 {[%clk 0:00:04]} 81. Re4 {[%clk 0:00:02]}  Kf5 {[%clk 0:00:04]} 82. Rh4 {[%clk 0:00:02]}  Ke5 {[%clk 0:00:05]} 83. Rh5+ {[%clk 0:00:02]}  Kd4 {[%clk 0:00:05]} 84. Nb6 {[%clk 0:00:02]}  Rb1 {[%clk 0:00:04]} 85. Rh4+ {[%clk 0:00:02]}  Ke5 {[%clk 0:00:04]} 86. Nd7+ {[%clk 0:00:02]}  Ke6 {[%clk 0:00:05]} 87. Nc5+ {[%clk 0:00:02]}  Kf6 {[%clk 0:00:04]} 88. Ne4+ {[%clk 0:00:02]}  Ke5 {[%clk 0:00:04]} 89. Nc3 {[%clk 0:00:02]}  Rc1 {[%clk 0:00:04]} 90. Nb5 {[%clk 0:00:03]}  Bb4 {[%clk 0:00:04]} 91. Rh5+ {[%clk 0:00:03]}  Kf6 {[%clk 0:00:04]} 92. Rh4 {[%clk 0:00:03]}  Kg5 {[%clk 0:00:05]} 93. Re4 {[%clk 0:00:03]}  Kf5 {[%clk 0:00:05]} 94. Rh4 {[%clk 0:00:03]}  Be1 {[%clk 0:00:05]} 95. Nd6+ {[%clk 0:00:03]}  Ke5 {[%clk 0:00:05]} 96. Re4+ {[%clk 0:00:03]}  Kf6 {[%clk 0:00:05]} 97. Re2 {[%clk 0:00:03]}  Bg3 {[%clk 0:00:04]} 98. Ne4+ {[%clk 0:00:03]}  Kg6 {[%clk 0:00:04]} 99. Nxg3 {[%clk 0:00:03]}  Rxc4+ {[%clk 0:00:05]} 100. Kd5 {[%clk 0:00:03]}  Rg4 {[%clk 0:00:05]} 101. Ne4 {[%clk 0:00:03]}  Rg1 {[%clk 0:00:05]} 102. Rf2 {[%clk 0:00:03]}  Ra1 {[%clk 0:00:05]} 103. Rf6+ {[%clk 0:00:02]}  Kh5 {[%clk 0:00:06]} 104. Ke5 {[%clk 0:00:02]}  Ra4 {[%clk 0:00:05]} 105. Kf4 {[%clk 0:00:02]}  Rb4 {[%clk 0:00:06]} 106. Kf5 {[%clk 0:00:02]}  Rb5+ {[%clk 0:00:06]} 107. Kf4 {[%clk 0:00:02]}  Rb4 {[%clk 0:00:06]} 108. Rf8 {[%clk 0:00:02]}  Ra4 {[%clk 0:00:06]} 109. Kf5 {[%clk 0:00:01]}  Ra5+ {[%clk 0:00:06]} 110. Kf4 {[%clk 0:00:02]}  Ra4 {[%clk 0:00:06]} 111. Kf3 {[%clk 0:00:02]}  Ra3+ {[%clk 0:00:06]} 112. Kf4 {[%clk 0:00:02]}  Ra4 {[%clk 0:00:07]} 1/2-1/2


[Site "https://www.chess.com"]

[Event "Titled Tuesday Blitz February 28 Late 2023"]
[White "Bernadskiy, Vitaliy"]
[Black "Di Berardino, Diego Rafael"]
[WhiteFideId "14100371"]
[BlackFideId "2105446"]
[WhiteElo "2488"]
[BlackElo "2432"]
[Result "1-0"]
[Round "11"]
[TimeControl "180+2"]
[Date "2023.02.28"]
[WhiteClock "0:01:57"]
[BlackClock "0:00:12"]

1. b3 {[%clk 0:03:00]}  Nf6 {[%clk 0:02:55]} 2. Nf3 {[%clk 0:02:59]}  g6 {[%clk 0:02:53]} 3. Bb2 {[%clk 0:02:59]}  Bg7 {[%clk 0:02:54]} 4. g3 {[%clk 0:02:58]}  O-O {[%clk 0:02:54]} 5. Bg2 {[%clk 0:02:58]}  c5 {[%clk 0:02:54]} 6. O-O {[%clk 0:02:58]}  Nc6 {[%clk 0:02:54]} 7. d3 {[%clk 0:02:58]}  d5 {[%clk 0:02:52]} 8. Nbd2 {[%clk 0:02:59]}  Qc7 {[%clk 0:02:52]} 9. e4 {[%clk 0:02:58]}  d4 {[%clk 0:02:49]} 10. a4 {[%clk 0:02:56]}  e5 {[%clk 0:02:49]} 11. Nc4 {[%clk 0:02:56]}  h6 {[%clk 0:02:42]} 12. Bc1 {[%clk 0:02:55]}  Be6 {[%clk 0:02:41]} 13. Nh4 {[%clk 0:02:54]}  Nd7 {[%clk 0:02:39]} 14. f4 {[%clk 0:02:52]}  exf4 {[%clk 0:02:15]} 15. gxf4 {[%clk 0:02:52]}  Qd8 {[%clk 0:02:10]} 16. Nf3 {[%clk 0:02:48]}  f5 {[%clk 0:02:07]} 17. e5 {[%clk 0:02:44]}  Nb6 {[%clk 0:01:57]} 18. Nd6 {[%clk 0:02:42]}  Qe7 {[%clk 0:01:56]} 19. Bd2 {[%clk 0:02:37]}  Nc8 {[%clk 0:01:55]} 20. Nc4 {[%clk 0:02:36]}  Bd5 {[%clk 0:01:47]} 21. Qe1 {[%clk 0:02:36]}  Nd8 {[%clk 0:01:40]} 22. Qg3 {[%clk 0:02:36]}  Qf7 {[%clk 0:01:31]} 23. Rf2 {[%clk 0:02:32]}  Ne6 {[%clk 0:01:30]} 24. Nh4 {[%clk 0:02:31]}  Bxg2 {[%clk 0:01:29]} 25. Rxg2 {[%clk 0:02:32]}  g5 {[%clk 0:01:24]} 26. fxg5 {[%clk 0:02:31]}  f4 {[%clk 0:01:24]} 27. g6 {[%clk 0:02:23]}  Qd7 {[%clk 0:01:07]} 28. Qg4 {[%clk 0:02:21]}  Qd5 {[%clk 0:01:00]} 29. Rf1 {[%clk 0:02:19]}  Ne7 {[%clk 0:00:57]} 30. Rgf2 {[%clk 0:02:18]}  b6 {[%clk 0:00:47]} 31. Bxf4 {[%clk 0:02:16]}  Nxf4 {[%clk 0:00:41]} 32. Rxf4 {[%clk 0:02:16]}  Rxf4 {[%clk 0:00:40]} 33. Rxf4 {[%clk 0:02:16]}  a6 {[%clk 0:00:36]} 34. Rf7 {[%clk 0:02:15]}  b5 {[%clk 0:00:33]} 35. Rxe7 {[%clk 0:02:13]}  bxc4 {[%clk 0:00:31]} 36. Nf5 {[%clk 0:02:06]}  Bxe5 {[%clk 0:00:14]} 37. Nxh6+ {[%clk 0:02:04]}  Kf8 {[%clk 0:00:13]} 38. Rf7+ {[%clk 0:02:03]}  Ke8 {[%clk 0:00:12]} 39. bxc4 {[%clk 0:01:57]} 1-0


[Site "https://www.chess.com"]